fUSD/lending_fUSD_20251013
["ID","MTS","AMOUNT","RATE_DAILY","PERIOD"]
[391106332,1760352638619,-441.5630658,0.00018479,2]
[391106337,1760352639545,-7749.28201311,0.00018479,2]
[391106338,1760352639555,-13317.7060609,0.00018479,2]
[391106339,1760352639564,-263.8920906,0.00018486,2]
[391106340,1760352639574,-28545.56051954,0.000185,2]
[391106341,1760352639583,-10097.743878,0.000185,2]
[391106342,1760352639592,-151.0,0.000185,2]
[391106343,1760352639602,-922.60174,0.000185,2]
[391106344,1760352639611,-168.0,0.00018638,2]
[391106345,1760352639621,-168.0,0.0001868,2]
[391106346,1760352639630,-10097.743878,0.000187,2]
[391106347,1760352639639,-200.0,0.000187,6]
[391106348,1760352639649,-1216.0,0.00018714,2]
[391106349,1760352639658,-235.06,0.00018748,2]
[391106350,1760352639668,-1000.0,0.0001876,2]
[391106351,1760352639678,-168.0,0.00018771,2]
[391106352,1760352639687,-168.0,0.00018794,2]
[391106353,1760352639696,-413.23,0.00018795,2]
[391106354,1760352639705,-500.0,0.000188,6]
[391106355,1760352639716,-477.4,0.00018818,2]
[391106356,1760352639725,-10097.743878,0.000189,2]
[391106357,1760352639735,-5000.0,0.000189,2]
[391106358,1760352639744,-800.0,0.000189,6]
[391106359,1760352639754,-232.37082673,0.000189,2]
[391106360,1760352639763,-153.0,0.00018904,2]
[391106361,1760352639772,-153.0,0.00018904,2]
[391106362,1760352639781,-153.0,0.00018904,2]
[391106363,1760352639791,-153.0,0.00018904,2]
[391106364,1760352639801,-153.0,0.00018904,2]
[391106365,1760352639810,-153.0,0.00018904,2]
[391106366,1760352639821,-153.0,0.00018904,2]
[391106367,1760352639830,-153.0,0.00018904,2]
[391106368,1760352639839,-153.0,0.00018904,2]
[391106369,1760352639848,-153.0,0.00018904,2]
[391106370,1760352639857,-153.0,0.00018904,2]
[391106372,1760352639868,-153.0,0.00018904,2]
[391106373,1760352639877,-153.0,0.00018904,2]
[391106374,1760352639886,-153.0,0.00018904,2]
[391106375,1760352639895,-153.0,0.00018904,2]
[391106376,1760352639907,-153.0,0.00018904,2]
[391106377,1760352639916,-153.0,0.00018904,2]
[391106378,1760352639925,-153.0,0.00018904,2]
[391106379,1760352639934,-153.0,0.00018904,2]
[391106380,1760352639944,-153.0,0.00018904,2]
[391106381,1760352639953,-155.0,0.00018904,2]
[391106382,1760352639963,-155.0,0.00018904,2]
[391106383,1760352639972,-155.0,0.00018904,2]
[391106384,1760352639982,-155.0,0.00018904,2]
[391106385,1760352639991,-155.0,0.00018904,2]
[391106386,1760352640000,-155.0,0.00018904,2]
[391106387,1760352640014,-155.0,0.00018904,2]
[391106388,1760352640023,-155.0,0.00018904,2]
[391106389,1760352640033,-155.0,0.00018904,2]
[391106390,1760352640043,-155.0,0.00018904,2]
[391106391,1760352640053,-155.0,0.00018904,2]
[391106392,1760352640062,-153.0,0.00018904,2]
[391106393,1760352640072,-153.0,0.00018904,2]
[391106394,1760352640082,-153.0,0.00018904,2]
[391106395,1760352640091,-153.0,0.00018904,2]
[391106396,1760352640101,-153.0,0.00018904,2]
[391106397,1760352640111,-153.0,0.00018904,2]
[391106398,1760352640121,-153.0,0.00018904,2]
[391106399,1760352640130,-153.0,0.00018904,2]
[391106400,1760352640140,-153.0,0.00018904,2]
[391106401,1760352640150,-153.0,0.00018904,2]
[391106402,1760352640161,-153.0,0.00018904,2]
[391106403,1760352640171,-153.0,0.00018904,2]
[391106404,1760352640180,-153.0,0.00018904,2]
[391106405,1760352640190,-153.0,0.00018904,2]
[391106406,1760352640199,-153.0,0.00018904,2]
[391106407,1760352640209,-153.0,0.00018904,2]
[391106408,1760352640218,-153.0,0.00018904,2]
[391106409,1760352640232,-153.0,0.00018904,2]
[391106410,1760352640241,-153.0,0.00018904,2]
[391106411,1760352640250,-153.0,0.00018904,2]
[391106412,1760352640260,-153.0,0.00018904,2]
[391106413,1760352640271,-153.0,0.00018904,2]
[391106414,1760352640281,-153.0,0.00018904,2]
[391106415,1760352640290,-153.0,0.00018904,2]
[391106416,1760352640302,-153.0,0.00018904,2]
[391106417,1760352640311,-153.0,0.00018904,2]
[391106418,1760352640320,-153.0,0.00018904,2]
[391106419,1760352640330,-153.0,0.00018904,2]
[391106420,1760352640339,-153.0,0.00018904,2]
[391106421,1760352640349,-153.0,0.00018904,2]
[391106422,1760352640358,-153.0,0.00018904,2]
[391106423,1760352640367,-153.0,0.00018904,2]
[391106424,1760352640376,-153.0,0.00018904,2]
[391106425,1760352640386,-153.0,0.00018904,2]
[391106426,1760352640395,-155.0,0.00018904,2]
[391106427,1760352640407,-155.0,0.00018904,2]
[391106428,1760352640417,-155.0,0.00018904,2]
[391106429,1760352640427,-155.0,0.00018904,2]
[391106430,1760352640437,-155.0,0.00018904,2]
[391106431,1760352640446,-155.0,0.00018904,2]
[391106432,1760352640455,-155.0,0.00018904,2]
[391106433,1760352640465,-155.0,0.00018904,2]
[391106434,1760352640475,-155.0,0.00018904,2]
[391106435,1760352640485,-155.0,0.00018904,2]
[391106436,1760352640495,-155.0,0.00018904,2]
[391106437,1760352640505,-153.0,0.00018904,2]
[391106438,1760352640515,-153.0,0.00018904,2]
[391106439,1760352640524,-153.0,0.00018904,2]
[391106440,1760352640533,-153.0,0.00018904,2]
[391106441,1760352640543,-153.0,0.00018904,2]
[391106442,1760352640553,-153.0,0.00018904,2]
[391106443,1760352640562,-153.0,0.00018904,2]
[391106444,1760352640572,-153.0,0.00018904,2]
[391106445,1760352640582,-153.0,0.00018904,2]
[391106446,1760352640592,-153.0,0.00018904,2]
[391106447,1760352640603,-153.0,0.00018904,2]
[391106448,1760352640612,-157.0,0.00018904,2]
[391106449,1760352640622,-157.0,0.00018904,2]
[391106450,1760352640632,-157.0,0.00018904,2]
[391106451,1760352640642,-157.0,0.00018904,2]
[391106452,1760352640653,-157.0,0.00018904,2]
[391106453,1760352640663,-157.0,0.00018904,2]
[391106454,1760352640672,-157.0,0.00018904,2]
[391106455,1760352640682,-157.0,0.00018904,2]
[391106456,1760352640691,-157.0,0.00018904,2]
[391106457,1760352640700,-157.0,0.00018904,2]
[391106458,1760352640710,-157.0,0.00018904,2]
[391106459,1760352640719,-153.0,0.00018904,2]
[391106460,1760352640729,-153.0,0.00018904,2]
[391106461,1760352640738,-153.0,0.00018904,2]
[391106462,1760352640748,-153.0,0.00018904,2]
[391106463,1760352640757,-153.0,0.00018904,2]
[391106464,1760352640767,-153.0,0.00018904,2]
[391106465,1760352640777,-153.0,0.00018904,2]
[391106466,1760352640787,-153.0,0.00018904,2]
[391106467,1760352640797,-153.0,0.00018904,2]
[391106468,1760352640806,-153.0,0.00018904,2]
[391106469,1760352640816,-153.0,0.00018904,2]
[391106470,1760352640825,-6977.83548881,0.00018908,2]
[391106471,1760352640834,-168.0,0.00018914,2]
[391106472,1760352640844,-694.86,0.00018959,2]
[391106473,1760352640853,-948.64,0.00018959,2]
[391106474,1760352640863,-1389.54,0.00018959,2]
[391106475,1760352640873,-694.86,0.00018959,2]
[391106476,1760352640883,-694.86,0.00018959,2]
[391106477,1760352640893,-694.86,0.00018959,2]
[391106478,1760352640902,-593.23,0.00018959,2]
[391106479,1760352640912,-1090.0,0.00018968,2]
[391106480,1760352640921,-1090.0,0.00018968,2]
[391106481,1760352640930,-500.0,0.00018973,2]
[391106482,1760352640940,-500.0,0.00018973,2]
[391106483,1760352640949,-500.0,0.00018973,2]
[391106484,1760352640959,-500.0,0.00018973,2]
[391106485,1760352640968,-500.0,0.00018973,2]
[391106486,1760352640978,-500.0,0.00018973,2]
[391106487,1760352640988,-500.0,0.00018973,2]
[391106488,1760352640997,-500.0,0.00018973,2]
[391106489,1760352641006,-500.0,0.00018973,2]
[391106490,1760352641015,-500.0,0.00018973,2]
[391106491,1760352641025,-500.0,0.00018973,2]
[391106492,1760352641035,-500.0,0.00018973,2]
[391106493,1760352641044,-204.98117838,0.00018978,2]
[391106494,1760352641053,-218.22397976,0.0001899,2]
[391106495,1760352641063,-5000.0,0.00018999,2]
[391106496,1760352641072,-155.0,0.00018999,2]
[391106497,1760352641082,-255.27076833,0.00018999,2]
[391106498,1760352641091,-196.8802745,0.00018999,2]
[391106499,1760352641100,-246.62946504,0.00018999,2]
[391106500,1760352641109,-500.0,0.00018999,2]
[391106501,1760352641120,-365.987771,0.00018999,2]
[391106502,1760352641129,-899.0,0.00019,2]
[391106503,1760352641138,-94098.8312959,0.00019,2]
[391106504,1760352641147,-918.66953689,0.00019,2]
[391106505,1760352641158,-167.35427191,0.00019,2]
[391106506,1760352641167,-300.0,0.00019,2]
[391106507,1760352641177,-429005.68607351,0.00019,2]
[391106508,1760352641191,-366.93884697,0.00019,2]
[391106513,1760352642850,-215.95709402,0.00018904,2]
[391106514,1760352642859,-7504.65987876,0.00019,2]
[391106545,1760352645725,-1620.7015,0.00019,2]
[391106557,1760352645835,-16653.4908707,0.00019,2]
[391106558,1760352645941,-58962.739603,0.00019,2]
[391106586,1760353208113,837.0,8.554e-05,2]
[391106587,1760353208323,837.0,9.005e-05,2]
[391106588,1760353208731,837.0,9.455e-05,2]
[391106589,1760353208961,837.0,9.905e-05,2]
[391106590,1760353209152,837.0,0.00010355,2]
[391106591,1760353209356,837.0,0.00010805,2]
[391106592,1760353209573,837.0,0.00011256,2]
[391106593,1760353209776,837.0,0.00011706,2]
[391106594,1760353209988,837.0,0.00012156,2]
[391106595,1760353216411,-376.59965842,0.00012606,2]
[391106598,1760353221027,-273.97974045,0.00012606,2]
[391106604,1760353366771,1000.0,0.000135,10]
[391106605,1760353396354,-169.13379518,0.00012606,2]
[391106606,1760353396377,-67.53321686,0.00012606,2]
[391106608,1760353457429,-118.88738427,0.00012606,2]
[391106609,1760353457450,-175.17294071,0.00012831,2]
[391106615,1760353797690,-84.58579112,0.00012831,2]
[391106616,1760353797713,-150.0,0.00012944,2]
[391106617,1760353797740,-837.0,0.00013057,2]
[391106618,1760353797765,-837.0,0.00013507,2]
[391106619,1760353797787,-194.05318659,0.00013766,2]
[391106620,1760353797811,-1200.0,0.00013866,2]
[391106621,1760353797834,-960.0,0.00013866,2]
[391106622,1760353797856,-300.0,0.00013866,2]
[391106623,1760353797876,-300.0,0.00013867,2]
[391106624,1760353797900,-300.0,0.00013867,2]
[391106625,1760353797920,-2000.0,0.00013867,2]
[391106626,1760353797942,-300.0,0.00013867,2]
[391106627,1760353797962,-300.0,0.00013867,2]
[391106628,1760353797982,-300.0,0.00013867,2]
[391106629,1760353798003,-300.0,0.00013867,2]
[391106630,1760353798023,-331.04313789,0.00013867,2]
[391106631,1760353798045,-602.41420888,0.00013957,2]
[391106644,1760353831777,-1200.0,0.00013865,2]
[391106645,1760353831787,-300.0,0.00013866,2]
[391106646,1760353831797,-300.0,0.00013866,2]
[391106647,1760353831807,-104.06574947,0.00013957,2]
[391106648,1760353831818,-130.52004165,0.00013957,2]
[391106649,1760353831829,-300.0,0.00013983,2]
[391106650,1760353831838,-264.11954036,0.00013983,2]
[391106651,1760353831851,-35.88045964,0.00013983,2]
[391106652,1760353831861,-300.0,0.00013983,2]
[391106653,1760353831870,-150.0,0.00014114,2]
[391106654,1760353831880,-2500.0,0.00014115,2]
[391106655,1760353831891,-2500.0,0.00014115,2]
[391106656,1760353831899,-2500.0,0.00014115,2]
[391106657,1760353831909,-1787.27698015,0.00014115,2]
[391106658,1760353831921,-712.72301985,0.00014115,2]
[391106659,1760353831930,-195.0,0.00014115,2]
[391106660,1760353831940,-376.749854,0.00014115,2]
[391106661,1760353831952,-879.77684106,0.00014115,2]
[391106662,1760353831964,-1243.47330494,0.00014115,2]
[391106663,1760353831973,-195.0,0.00014115,2]
[391106664,1760353831983,-150.0,0.00014115,2]
[391106665,1760353831993,-300.0,0.00014115,2]
[391106666,1760353832003,-300.0,0.00014115,2]
[391106667,1760353832012,-300.0,0.00014115,2]
[391106668,1760353832023,-2000.0,0.00014115,2]
[391106669,1760353832033,-300.0,0.00014115,2]
[391106670,1760353832043,-301.2621063,0.00014115,2]
[391106672,1760353832053,-250.0,0.00014115,2]
[391106674,1760353832062,-195.0,0.00014115,2]
[391106676,1760353832072,-250.0,0.00014115,2]
[391106677,1760353832082,-195.0,0.00014115,2]
[391106678,1760353832092,-195.0,0.00014115,2]
[391106679,1760353832101,-193.0,0.00014115,2]
[391106681,1760353832110,-837.0,0.00014407,2]
[391106683,1760353832121,-837.0,0.00014857,2]
[391106685,1760353832130,-203.15143405,0.00015096,2]
[391106687,1760353832140,-177.89685993,0.00015096,2]
[391106689,1760353832152,-87.20429642,0.00015096,2]
[391106691,1760353832161,-255.0,0.00015229,2]
[391106694,1760353832174,-259.51677693,0.00015252,2]
[391106696,1760353832183,-300.0,0.00015252,2]
[391106697,1760353832193,-1680.0,0.00015252,2]
[391106700,1760353832202,-837.0,0.00015308,2]
[391106702,1760353832212,-150.0,0.00015387,2]
[391106704,1760353832221,-150.0,0.00015387,2]
[391106706,1760353832230,-193.721,0.00015387,2]
[391106708,1760353832240,-150.0,0.00015387,2]
[391106710,1760353832249,-215.509,0.00015387,2]
[391106712,1760353832258,-150.0,0.00015387,2]
[391106713,1760353832267,-150.0,0.00015387,2]
[391106716,1760353832277,-837.0,0.00015758,2]
[391106718,1760353832286,-2000.0,0.00016103,2]
[391106721,1760353832296,-170.238,0.00016103,2]
[391106723,1760353832305,-837.0,0.00016208,2]
[391106725,1760353832314,-700.0,0.0001637,2]
[391106726,1760353832324,-573.23040754,0.00016409,2]
[391106728,1760353832333,-7693.88730503,0.00016409,2]
[391106731,1760353832344,-1345.0415323,0.00016409,2]
[391106732,1760353832355,-172.41915252,0.00016409,2]
[391106734,1760353832365,-433.0,0.00016428,2]
[391106735,1760353832375,-397.8,0.00016438,2]
[391106736,1760353832385,-7588.10894726,0.00016464,2]
[391106737,1760353832396,-1914.75277448,0.00016464,2]
[391106738,1760353832407,-49.30614373,0.00016464,2]
[391106739,1760353832417,-500.0,0.00016466,2]
[391106740,1760353832428,-236.57832107,0.00016519,2]
[391106741,1760353832440,-788.9,0.00016519,2]
[391106742,1760353832451,-280.39427944,0.00016519,2]
[391106756,1760353837754,-3435.35377781,0.00016519,2]
[391106785,1760353839754,-294.05674955,0.00015358,2]
[391106786,1760353839861,-2250.94325045,0.00015358,2]
[391106787,1760353839871,-692.48000581,0.00016519,2]
[391106788,1760353839880,-837.0,0.00016658,2]
[391106789,1760353839890,-666.0,0.00016689,3]
[391106790,1760353839901,-1000.0,0.0001675,2]
[391106791,1760353839910,-2351.0,0.00016777,2]
[391106792,1760353839920,-851.38,0.00016945,2]
[391106793,1760353839933,-250.0,0.00017,2]
[391106794,1760353839943,-280.16015786,0.000171,2]
[391106795,1760353839953,-560.32031573,0.000171,2]
[391106796,1760353839962,-840.4804736,0.000171,2]
[391106797,1760353839972,-1120.64063147,0.000171,2]
[391106798,1760353839981,-837.0,0.00017109,2]
[391106799,1760353839990,-475.32661018,0.00017342,2]
[391106800,1760353839999,-993.26,0.00017351,2]
[391106801,1760353840010,-1383.597,0.00017418,2]
[391106802,1760353840020,-397.8,0.00017628,2]
[391106803,1760353840030,-528.0,0.00017727,2]
[391106804,1760353840040,-166.65,0.00017731,2]
[391106805,1760353840049,-1400.80078934,0.00017837,2]
[391106806,1760353840059,-300.0,0.00017938,2]
[391106807,1760353840070,-3029.3231634,0.00018,2]
[391106808,1760353840080,-168.0,0.00018046,2]
[391106809,1760353840089,-1000.0,0.00018082,2]
[391106810,1760353840098,-312.0,0.00018102,2]
[391106811,1760353840107,-312.0,0.00018185,2]
[391106812,1760353840117,-3029.3231634,0.000182,2]
[391106813,1760353840127,-468.23485729,0.00018258,2]
[391106814,1760353840137,-150.0,0.0001831,2]
[391106815,1760353840147,-150.0,0.0001831,2]
[391106816,1760353840156,-500.0,0.0001831,2]
[391106817,1760353840165,-150.0,0.0001831,2]
[391106818,1760353840174,-500.0,0.00018365,2]
[391106819,1760353840187,-150.0,0.00018365,2]
[391106820,1760353840196,-150.0,0.00018387,2]
[391106821,1760353840205,-150.0,0.00018387,2]
[391106822,1760353840214,-150.0,0.00018387,2]
[391106823,1760353840223,-150.0,0.00018387,2]
[391106824,1760353840233,-150.0,0.00018387,2]
[391106825,1760353840244,-3029.3231634,0.000184,2]
[391106826,1760353840254,-500.0,0.00018413,2]
[391106827,1760353840264,-500.0,0.0001842,2]
[391106828,1760353840273,-200.0,0.0001842,2]
[391106829,1760353840283,-312.0,0.00018428,2]
[391106830,1760353840292,-2834.0,0.00018454,2]
[391106831,1760353840302,-500.0,0.00018474,2]
[391106832,1760353840311,-3029.3231634,0.000185,2]
[391106833,1760353840321,-168.0,0.00018526,2]
[391106834,1760353840331,-500.0,0.00018529,2]
[391106835,1760353840340,-312.0,0.0001857,2]
[391106836,1760353840349,-500.0,0.00018584,2]
[391106837,1760353840359,-312.0,0.00018602,2]
[391106838,1760353840368,-843.2278746,0.00018632,2]
[391106839,1760353840377,-500.0,0.00018639,2]
[391106840,1760353840388,-312.0,0.00018688,2]
[391106841,1760353840398,-500.0,0.00018694,2]
[391106842,1760353840407,-3029.3231634,0.000187,2]
[391106843,1760353840417,-312.0,0.00018703,2]
[391106844,1760353840427,-166.65,0.00018706,2]
[391106845,1760353840439,-312.0,0.0001874,2]
[391106846,1760353840447,-500.0,0.00018748,2]
[391106847,1760353840456,-1000.0,0.0001876,2]
[391106848,1760353840465,-1680.96094721,0.00018767,2]
[391106849,1760353840474,-500.0,0.000188,6]
[391106850,1760353840482,-216.50401327,0.00018803,2]
[391106851,1760353840492,-173.26509925,0.00018804,2]
[391106852,1760353840501,-397.8,0.00018818,2]
[391106853,1760353840510,-500.0,0.00018819,2]
[391106854,1760353840518,-500.0,0.00018819,2]
[391106855,1760353840527,-500.0,0.00018819,2]
[391106856,1760353840536,-500.0,0.00018819,2]
[391106857,1760353840546,-500.0,0.00018819,2]
[391106858,1760353840555,-338.16624824,0.00018819,2]
[391106859,1760353840564,-500.0,0.00018819,2]
[391106860,1760353840574,-500.0,0.00018819,2]
[391106861,1760353840588,-4753.92121881,0.0001882,2]
[391106862,1760353840597,-186.1,0.00018822,2]
[391106863,1760353840607,-168.14,0.00018822,2]
[391106864,1760353840616,-1092.63,0.00018822,2]
[391106865,1760353840627,-1092.53,0.00018822,2]
[391106866,1760353840637,-168.14,0.00018822,2]
[391106867,1760353840646,-168.14,0.00018822,2]
[391106868,1760353840656,-312.0,0.00018856,2]
[391106869,1760353840667,-168.0,0.00018857,2]
[391106870,1760353840679,-160.67415124,0.000189,2]
[391106871,1760353840689,-188.33230644,0.000189,2]
[391106872,1760353840698,-3029.3231634,0.000189,2]
[391106873,1760353841032,-204.98117838,0.000189,2]
[391106874,1760353841043,-6977.83548881,0.000189,2]
[391106875,1760353841053,-1100.0,0.000189,6]
[391106876,1760353841064,-5000.0,0.000189,2]
[391106877,1760353841074,-277.35206752,0.000189,2]
[391106878,1760353841084,-154.77803717,0.000189,2]
[391106879,1760353841097,-235.06,0.00018904,2]
[391106880,1760353841107,-153.0,0.00018904,2]
[391106881,1760353841118,-153.0,0.00018904,2]
[391106882,1760353841127,-153.0,0.00018904,2]
[391106883,1760353841137,-153.0,0.00018904,2]
[391106884,1760353841148,-153.0,0.00018904,2]
[391106885,1760353841157,-153.0,0.00018904,2]
[391106886,1760353841166,-153.0,0.00018904,2]
[391106887,1760353841175,-153.0,0.00018904,2]
[391106888,1760353841184,-153.0,0.00018904,2]
[391106889,1760353841193,-153.0,0.00018904,2]
[391106890,1760353841202,-153.0,0.00018904,2]
[391106891,1760353841213,-153.0,0.00018904,2]
[391106892,1760353841222,-153.0,0.00018904,2]
[391106893,1760353841232,-153.0,0.00018904,2]
[391106894,1760353841242,-153.0,0.00018904,2]
[391106895,1760353841251,-153.0,0.00018904,2]
[391106896,1760353841261,-153.0,0.00018904,2]
[391106897,1760353841270,-153.0,0.00018904,2]
[391106898,1760353841279,-153.0,0.00018904,2]
[391106899,1760353841288,-153.0,0.00018904,2]
[391106900,1760353841297,-153.0,0.00018904,2]
[391106901,1760353841307,-153.0,0.00018904,2]
[391106902,1760353841316,-153.0,0.00018904,2]
[391106903,1760353841326,-153.0,0.00018904,2]
[391106904,1760353841335,-153.0,0.00018904,2]
[391106905,1760353841344,-153.0,0.00018904,2]
[391106906,1760353841352,-153.0,0.00018904,2]
[391106907,1760353841361,-153.0,0.00018904,2]
[391106908,1760353841370,-153.0,0.00018904,2]
[391106909,1760353841379,-153.0,0.00018904,2]
[391106910,1760353841388,-153.0,0.00018904,2]
[391106911,1760353841399,-153.0,0.00018904,2]
[391106912,1760353841408,-153.0,0.00018904,2]
[391106913,1760353841417,-153.0,0.00018904,2]
[391106914,1760353841428,-153.0,0.00018904,2]
[391106915,1760353841437,-153.0,0.00018904,2]
[391106916,1760353841446,-153.0,0.00018904,2]
[391106917,1760353841455,-153.0,0.00018904,2]
[391106918,1760353841464,-153.0,0.00018904,2]
[391106919,1760353841474,-153.0,0.00018904,2]
[391106920,1760353841482,-153.0,0.00018904,2]
[391106921,1760353841492,-153.0,0.00018904,2]
[391106922,1760353841501,-153.0,0.00018904,2]
[391106923,1760353841510,-153.0,0.00018904,2]
[391106924,1760353841520,-153.0,0.00018904,2]
[391106925,1760353841529,-153.0,0.00018904,2]
[391106926,1760353841538,-153.0,0.00018904,2]
[391106927,1760353841547,-153.0,0.00018904,2]
[391106928,1760353841557,-153.0,0.00018904,2]
[391106929,1760353841567,-153.0,0.00018904,2]
[391106930,1760353841580,-153.0,0.00018904,2]
[391106931,1760353841590,-153.0,0.00018904,2]
[391106932,1760353841599,-153.0,0.00018904,2]
[391106933,1760353841607,-153.0,0.00018904,2]
[391106934,1760353841618,-153.0,0.00018904,2]
[391106935,1760353841627,-153.0,0.00018904,2]
[391106936,1760353841636,-153.0,0.00018904,2]
[391106937,1760353841644,-153.0,0.00018904,2]
[391106938,1760353841654,-153.0,0.00018904,2]
[391106939,1760353841664,-153.0,0.00018904,2]
[391106940,1760353841673,-153.0,0.00018904,2]
[391106941,1760353841685,-153.0,0.00018904,2]
[391106942,1760353841694,-153.0,0.00018904,2]
[391106943,1760353841703,-153.0,0.00018904,2]
[391106944,1760353841711,-153.0,0.00018904,2]
[391106945,1760353841721,-153.0,0.00018904,2]
[391106946,1760353841730,-153.0,0.00018904,2]
[391106947,1760353841740,-153.0,0.00018904,2]
[391106948,1760353841749,-153.0,0.00018904,2]
[391106949,1760353841758,-153.0,0.00018904,2]
[391106950,1760353841767,-153.0,0.00018904,2]
[391106951,1760353841776,-153.0,0.00018904,2]
[391106952,1760353841786,-153.0,0.00018904,2]
[391106953,1760353841795,-153.0,0.00018904,2]
[391106954,1760353841804,-153.0,0.00018904,2]
[391106955,1760353841813,-153.0,0.00018904,2]
[391106956,1760353841822,-153.0,0.00018904,2]
[391106957,1760353841832,-153.0,0.00018904,2]
[391106958,1760353841842,-153.0,0.00018904,2]
[391106959,1760353841851,-153.0,0.00018904,2]
[391106960,1760353841860,-153.0,0.00018904,2]
[391106961,1760353841870,-153.0,0.00018904,2]
[391106962,1760353841879,-153.0,0.00018904,2]
[391106963,1760353841888,-153.0,0.00018904,2]
[391106964,1760353841898,-153.0,0.00018904,2]
[391106965,1760353841907,-153.0,0.00018904,2]
[391106966,1760353841917,-170.0,0.00018904,2]
[391106967,1760353841928,-170.0,0.00018904,2]
[391106968,1760353841938,-170.0,0.00018904,2]
[391106969,1760353841947,-170.0,0.00018904,2]
[391106970,1760353841957,-170.0,0.00018904,2]
[391106971,1760353841965,-170.0,0.00018904,2]
[391106972,1760353841974,-170.0,0.00018904,2]
[391106973,1760353841984,-170.0,0.00018904,2]
[391106974,1760353841993,-170.0,0.00018904,2]
[391106975,1760353842002,-170.0,0.00018904,2]
[391106976,1760353842011,-170.0,0.00018904,2]
[391106977,1760353842020,-153.0,0.00018904,2]
[391106978,1760353842029,-153.0,0.00018904,2]
[391106979,1760353842039,-153.0,0.00018904,2]
[391106980,1760353842048,-153.0,0.00018904,2]
[391106981,1760353842057,-153.0,0.00018904,2]
[391106982,1760353842066,-153.0,0.00018904,2]
[391106983,1760353842075,-153.0,0.00018904,2]
[391106984,1760353842084,-153.0,0.00018904,2]
[391106985,1760353842094,-153.0,0.00018904,2]
[391106986,1760353842103,-153.0,0.00018904,2]
[391106987,1760353842112,-153.0,0.00018904,2]
[391106988,1760353842121,-160.0,0.00018966,2]
[391106989,1760353842131,-500.0,0.00018973,2]
[391106990,1760353842141,-500.0,0.00018973,2]
[391106991,1760353842151,-500.0,0.00018973,2]
[391106992,1760353842161,-500.0,0.00018973,2]
[391106993,1760353842171,-500.0,0.00018973,2]
[391106994,1760353842182,-500.0,0.00018973,2]
[391106995,1760353842191,-500.0,0.00018973,2]
[391106996,1760353842200,-500.0,0.00018973,2]
[391106997,1760353842209,-500.0,0.00018973,2]
[391106998,1760353842218,-500.0,0.00018973,2]
[391106999,1760353842228,-27943.7867032,0.00018989,2]
[391107000,1760353842237,-218.22397976,0.0001899,2]
[391107001,1760353842247,-10462.3503891,0.00018992,2]
[391107002,1760353842256,-151.0,0.00018996,2]
[391107003,1760353842265,-155.0,0.00018999,2]
[391107004,1760353842274,-5000.0,0.00018999,2]
[391107005,1760353842283,-259.7963313,0.00018999,2]